fUSD/lending_fUSD_20250609
["ID","MTS","AMOUNT","RATE_DAILY","PERIOD"]
[365056076,1749430235309,-647.09,0.00018855,2]
[365056077,1749430235318,-497.82,0.00018855,2]
[365056078,1749430235328,-480.0,0.00018855,2]
[365056079,1749430235337,-498.76,0.00018855,2]
[365056080,1749430235346,-480.0,0.00018855,2]
[365056081,1749430235355,-1034.18,0.00018855,2]
[365056082,1749430235365,-515.52,0.00018855,2]
[365056083,1749430235374,-562.73,0.00018855,2]
[365056084,1749430235383,-480.0,0.00018855,2]
[365056085,1749430235393,-521.33,0.00018855,2]
[365056086,1749430235402,-480.0,0.00018855,2]
[365056087,1749430235412,-321.70302829,0.00018855,2]
[365056088,1749430235421,-480.0,0.00018855,2]
[365056089,1749430235429,-480.0,0.00018855,2]
[365056090,1749430235438,-480.0,0.00018855,2]
[365056091,1749430235446,-480.0,0.00018855,2]
[365056092,1749430235454,-480.0,0.00018855,2]
[365056093,1749430235462,-598.77,0.00018855,2]
[365056094,1749430235470,-480.0,0.00018855,2]
[365056095,1749430235478,-629.53,0.00018855,2]
[365056096,1749430235487,-480.0,0.00018855,2]
[365056097,1749430235496,-601.01,0.00018855,2]
[365056098,1749430235505,-1070.4,0.00018855,2]
[365056099,1749430235514,-480.0,0.00018855,2]
[365056100,1749430235525,-480.0,0.00018855,2]
[365056101,1749430235534,-480.0,0.00018855,2]
[365056102,1749430235544,-480.0,0.00018855,2]
[365056103,1749430235553,-546.75,0.00018855,2]
[365056104,1749430235563,-480.0,0.00018855,2]
[365056105,1749430235573,-480.0,0.00018855,2]
[365056106,1749430235584,-346.23399194,0.00018855,2]
[365056107,1749430235594,-480.0,0.00018855,2]
[365056108,1749430235604,-480.0,0.00018855,2]
[365056109,1749430235614,-480.0,0.00018855,2]
[365056110,1749430235623,-480.0,0.00018855,2]
[365056111,1749430235633,-1177.26,0.00018855,2]
[365056112,1749430235642,-359.08282815,0.00018855,2]
[365056113,1749430235652,-348.58420061,0.00018855,2]
[365056114,1749430235661,-480.0,0.00018855,2]
[365056115,1749430235671,-357.80617361,0.00018855,2]
[365056116,1749430235680,-480.0,0.00018855,2]
[365056117,1749430235690,-480.0,0.00018855,2]
[365056118,1749430235699,-480.0,0.00018855,2]
[365056119,1749430235710,-480.0,0.00018855,2]
[365056120,1749430235721,-480.0,0.00018855,2]
[365056121,1749430235730,-480.0,0.00018855,2]
[365056122,1749430235740,-480.0,0.00018855,2]
[365056123,1749430235750,-480.0,0.00018855,2]
[365056124,1749430235759,-480.0,0.00018855,2]
[365056125,1749430235767,-480.0,0.00018855,2]
[365056126,1749430235776,-480.0,0.00018855,2]
[365056127,1749430235786,-480.0,0.00018855,2]
[365056128,1749430235795,-480.0,0.00018855,2]
[365056129,1749430235804,-480.0,0.00018855,2]
[365056130,1749430235813,-480.0,0.00018855,2]
[365056131,1749430235822,-480.0,0.00018855,2]
[365056132,1749430235835,-480.0,0.00018855,2]
[365056133,1749430235849,-546.28002858,0.00018855,2]
[365056134,1749430235863,-480.0,0.00018855,2]
[365056135,1749430235874,-480.0,0.00018855,2]
[365056136,1749430235886,-480.0,0.00018855,2]
[365056137,1749430235900,-676.79,0.00018855,2]
[365056138,1749430235913,-480.0,0.00018855,2]
[365056139,1749430235927,-480.0,0.00018855,2]
[365056140,1749430235940,-480.0,0.00018855,2]
[365056141,1749430235952,-480.0,0.00018855,2]
[365056142,1749430235963,-256.4,0.00018855,2]
[365056143,1749430235975,-480.0,0.00018855,2]
[365056144,1749430235989,-480.0,0.00018855,2]
[365056145,1749430236002,-480.0,0.00018855,2]
[365056146,1749430236016,-480.0,0.00018855,2]
[365056147,1749430236029,-682.87,0.00018855,2]
[365056148,1749430236043,-480.0,0.00018855,2]
[365056149,1749430236057,-480.0,0.00018855,2]
[365056150,1749430236071,-480.0,0.00018855,2]
[365056151,1749430236085,-480.0,0.00018855,2]
[365056152,1749430236099,-480.0,0.00018855,2]
[365056153,1749430236115,-480.0,0.00018855,2]
[365056154,1749430236128,-542.96,0.00018855,2]
[365056155,1749430236143,-480.0,0.00018855,2]
[365056156,1749430236157,-505.2,0.00018855,2]
[365056157,1749430236170,-480.0,0.00018855,2]
[365056158,1749430236183,-487.5,0.00018855,2]
[365056159,1749430236195,-480.0,0.00018855,2]
[365056160,1749430236207,-838.6,0.00018855,2]
[365056161,1749430236219,-480.0,0.00018855,2]
[365056162,1749430236232,-524.84544148,0.00018855,2]
[365056163,1749430236247,-96.70940471,0.00018855,2]
[365056165,1749430238010,-480.0,0.00018768,2]
[365056166,1749430238021,-480.0,0.00018768,2]
[365056167,1749430238031,-383.29059529,0.00018855,2]
[365056168,1749430238042,-614.82,0.00018855,2]
[365056169,1749430238052,-480.0,0.00018855,2]
[365056170,1749430238062,-480.0,0.00018855,2]
[365056171,1749430238072,-480.0,0.00018855,2]
[365056172,1749430238081,-612.24,0.00018855,2]
[365056173,1749430238092,-480.0,0.00018855,2]
[365056174,1749430238102,-495.48,0.00018855,2]
[365056175,1749430238119,-480.0,0.00018855,2]
[365056176,1749430238129,-480.0,0.00018855,2]
[365056177,1749430238140,-583.94,0.00018855,2]
[365056178,1749430238152,-480.0,0.00018855,2]
[365056179,1749430238162,-764.38,0.00018855,2]
[365056190,1749430238441,-480.0,0.00018855,2]
[365056193,1749430238467,-480.0,0.00018855,2]
[365056196,1749430238488,-630.24,0.00018855,2]
[365056198,1749430238500,-480.0,0.00018855,2]
[365056200,1749430238510,-313.5432902,0.00018855,2]
[365056202,1749430238520,-429.97070591,0.00018855,2]
[365056204,1749430238532,-180.05929409,0.00018855,2]
[365056206,1749430238542,-132.78070591,0.00018855,2]
[365056400,1749430240329,-480.0,0.00018768,2]
[365056402,1749430240339,-480.0,0.0001877,2]
[365056404,1749430240348,-496.50929409,0.00018855,2]
[365056406,1749430240357,-587.54,0.00018855,2]
[365056408,1749430240367,-686.93,0.00018855,2]
[365056409,1749430240376,-480.0,0.00018855,2]
[365056411,1749430240385,-480.0,0.00018855,2]
[365056413,1749430240395,-480.0,0.00018855,2]
[365056415,1749430240404,-480.0,0.00018855,2]
[365056417,1749430240413,-480.0,0.00018855,2]
[365056419,1749430240423,-480.0,0.00018855,2]
[365056421,1749430240432,-480.0,0.00018855,2]
[365056423,1749430240442,-480.0,0.00018855,2]
[365056425,1749430240450,-480.0,0.00018855,2]
[365056427,1749430240460,-480.0,0.00018856,2]
[365056429,1749430240470,-480.0,0.00018856,2]
[365056431,1749430240480,-480.0,0.00018856,2]
[365056433,1749430240489,-480.0,0.00018856,2]
[365056435,1749430240499,-480.0,0.00018856,2]
[365056436,1749430240509,-480.0,0.00018856,2]
[365056438,1749430240519,-100.77609204,0.00018856,2]
[365056513,1749430241372,205.0,0.00016326,2]
[365056664,1749430243048,-300.0,0.00018768,2]
[365056666,1749430246102,-248.97,0.00018768,2]
[365056667,1749430246115,-480.0,0.00018855,2]
[365056668,1749430246124,-480.0,0.00018855,2]
[365056669,1749430246133,-480.0,0.00018855,2]
[365056670,1749430246142,-297.8745118,0.00018856,2]
[365056671,1749430246236,-81.34939616,0.00018856,2]
[365056672,1749430246245,-480.0,0.00018856,2]
[365056673,1749430246254,-480.0,0.00018856,2]
[365056674,1749430246263,-630.37,0.00018856,2]
[365056675,1749430246274,-480.0,0.00018856,2]
[365056676,1749430246283,-844.3,0.00018856,2]
[365056677,1749430246292,-494.19,0.00018856,2]
[365056678,1749430246301,-728.07,0.00018856,2]
[365056679,1749430246310,-723.58028471,0.00018856,2]
[365056680,1749430246333,-233.89971529,0.00018856,2]
[365056681,1749430246342,-567.29,0.00018856,2]
[365056682,1749430246351,-480.0,0.00018856,2]
[365056684,1749430246360,-954.08,0.00018856,2]
[365056685,1749430246369,-480.0,0.00018856,2]
[365056686,1749430246379,-480.0,0.00018856,2]
[365056687,1749430246388,-525.52,0.00018856,2]
[365056688,1749430246397,-546.43,0.00018856,2]
[365056689,1749430246406,-203.4,0.00018856,2]
[365056691,1749430246416,-553.45,0.00018856,2]
[365056693,1749430246424,-551.01,0.00018856,2]
[365056695,1749430246434,-480.0,0.00018856,2]
[365056696,1749430246443,-480.0,0.00018856,2]
[365056697,1749430246452,-480.0,0.00018856,2]
[365056698,1749430246462,-2227.56768219,0.00018876,2]
[365056699,1749430246471,-480.0,0.00018894,2]
[365056700,1749430246481,-480.0,0.00018894,2]
[365056701,1749430246490,-480.0,0.00018894,2]
[365056703,1749430246500,-226.50169057,0.00018894,2]
[365056704,1749430246509,-480.0,0.00018894,2]
[365056705,1749430246518,-480.0,0.00018894,2]
[365056706,1749430246529,-480.0,0.00018894,2]
[365056707,1749430246543,-480.0,0.00018894,2]
[365056708,1749430246552,-480.0,0.00018894,2]
[365056709,1749430246562,-480.0,0.00018894,2]
[365056710,1749430246571,-480.0,0.00018894,2]
[365056711,1749430246580,-480.0,0.00018894,2]
[365056712,1749430246589,-480.0,0.00018894,2]
[365056713,1749430246599,-480.0,0.00018894,2]
[365056714,1749430246608,-480.0,0.00018894,2]
[365056715,1749430246617,-480.0,0.00018894,2]
[365056716,1749430246626,-480.0,0.00018894,2]
[365056717,1749430246635,-480.0,0.00018894,2]
[365056718,1749430246644,-480.0,0.00018894,2]
[365056719,1749430246653,-480.0,0.00018894,2]
[365056720,1749430246662,-480.0,0.00018894,2]
[365056721,1749430246671,-480.0,0.00018894,2]
[365056722,1749430246681,-480.0,0.00018894,2]
[365056723,1749430246690,-480.0,0.00018894,2]
[365056724,1749430246699,-480.0,0.00018894,2]
[365056725,1749430246708,-480.0,0.00018894,2]
[365056726,1749430246717,-480.0,0.00018894,2]
[365056727,1749430246726,-480.0,0.00018894,2]
[365056728,1749430246735,-480.0,0.00018894,2]
[365056729,1749430246744,-507.46,0.00018894,2]
[365056730,1749430246753,-480.0,0.00018894,2]
[365056731,1749430246762,-480.0,0.00018894,2]
[365056732,1749430246771,-480.0,0.00018894,2]
[365056733,1749430246779,-366.80984723,0.00018894,2]
[365056734,1749430246788,-480.0,0.00018894,2]
[365056735,1749430246798,-480.0,0.00018894,2]
[365056736,1749430246807,-854.92,0.00018894,2]
[365056737,1749430246816,-480.0,0.00018894,2]
[365056738,1749430246825,-480.0,0.00018894,2]
[365056739,1749430246834,-300.0,0.00018894,2]
[365056740,1749430246843,-480.0,0.00018894,2]
[365056741,1749430246851,-480.0,0.00018894,2]
[365056742,1749430246860,-480.0,0.00018894,2]
[365056743,1749430246869,-1302.98,0.00018894,2]
[365056744,1749430246878,-480.0,0.00018894,2]
[365056745,1749430246888,-480.0,0.00018894,2]
[365056746,1749430246897,-480.0,0.00018894,2]
[365056747,1749430246906,-480.0,0.00018894,2]
[365056748,1749430246915,-480.0,0.00018894,2]
[365056749,1749430246924,-480.0,0.00018894,2]
[365056750,1749430246933,-480.0,0.00018894,2]
[365056751,1749430246942,-480.0,0.00018894,2]
[365056752,1749430246951,-480.0,0.00018894,2]
[365056753,1749430246960,-564.82,0.00018894,2]
[365056754,1749430246969,-480.0,0.00018894,2]
[365056755,1749430246978,-480.0,0.00018894,2]
[365056756,1749430246987,-480.0,0.00018894,2]
[365056757,1749430246996,-480.0,0.00018894,2]
[365056758,1749430247005,-480.0,0.00018894,2]
[365056759,1749430247014,-300.0,0.00018894,2]
[365056760,1749430247024,-480.0,0.00018894,2]
[365056761,1749430247033,-480.0,0.00018894,2]
[365056762,1749430247043,-480.0,0.00018894,2]
[365056763,1749430247052,-480.0,0.00018894,2]
[365056764,1749430247061,-480.0,0.00018894,2]
[365056765,1749430247070,-480.0,0.00018894,2]
[365056766,1749430247079,-480.0,0.00018894,2]
[365056767,1749430247088,-480.0,0.00018894,2]
[365056768,1749430247097,-480.0,0.00018894,2]
[365056769,1749430247108,-480.0,0.00018894,2]
[365056770,1749430247119,-480.0,0.00018894,2]
[365056771,1749430247127,-480.0,0.00018894,2]
[365056772,1749430247137,-480.0,0.00018894,2]
[365056773,1749430247147,-703.84,0.00018894,2]
[365056774,1749430247156,-480.0,0.00018894,2]
[365056775,1749430247165,-480.0,0.00018894,2]
[365056776,1749430247175,-480.0,0.00018894,2]
[365056777,1749430247187,-480.0,0.00018894,2]
[365056778,1749430247197,-480.0,0.00018894,2]
[365056779,1749430247207,-480.0,0.00018894,2]
[365056780,1749430247217,-480.0,0.00018894,2]
[365056781,1749430247227,-480.0,0.00018894,2]
[365056782,1749430247238,-363.02770547,0.00018894,2]
[365056783,1749430247249,-480.0,0.00018894,2]
[365056784,1749430247258,-480.0,0.00018894,2]
[365056785,1749430247268,-480.0,0.00018894,2]
[365056786,1749430247277,-480.0,0.00018894,2]
[365056787,1749430247286,-480.0,0.00018894,2]
[365056788,1749430247294,-511.44,0.00018894,2]
[365056789,1749430247302,-480.0,0.00018894,2]
[365056790,1749430247311,-480.0,0.00018894,2]
[365056791,1749430247319,-480.0,0.00018894,2]
[365056792,1749430247326,-480.0,0.00018894,2]
[365056793,1749430247334,-504.38,0.00018894,2]
[365056794,1749430247343,-480.0,0.00018894,2]
[365056795,1749430247350,-480.0,0.00018894,2]
[365056796,1749430247359,-480.0,0.00018894,2]
[365056797,1749430247367,-480.0,0.00018894,2]
[365056798,1749430247376,-509.65146843,0.00018894,2]
[365056799,1749430247385,-480.0,0.00018894,2]
[365056800,1749430247393,-480.0,0.00018894,2]
[365056801,1749430247402,-480.0,0.00018894,2]
[365056802,1749430247409,-480.0,0.00018894,2]
[365056803,1749430247417,-839.27,0.00018894,2]
[365056804,1749430247426,-480.0,0.00018894,2]
[365056805,1749430247434,-480.0,0.00018894,2]
[365056806,1749430247442,-480.0,0.00018894,2]
[365056807,1749430247450,-480.0,0.00018894,2]
[365056808,1749430247459,-480.0,0.00018894,2]
[365056809,1749430247467,-480.0,0.00018894,2]
[365056810,1749430247475,-480.0,0.00018894,2]
[365056811,1749430247483,-480.0,0.00018894,2]
[365056812,1749430247491,-480.0,0.00018894,2]
[365056813,1749430247499,-480.0,0.00018894,2]
[365056814,1749430247507,-480.0,0.00018894,2]
[365056815,1749430247515,-597.02,0.00018894,2]
[365056816,1749430247524,-480.0,0.00018894,2]
[365056817,1749430247534,-480.0,0.00018894,2]
[365056818,1749430247543,-480.0,0.00018894,2]
[365056819,1749430247552,-480.0,0.00018894,2]
[365056820,1749430247561,-675.59,0.00018894,2]
[365056821,1749430247572,-480.0,0.00018894,2]
[365056822,1749430247581,-480.0,0.00018894,2]
[365056823,1749430247590,-480.0,0.00018894,2]
[365056824,1749430247599,-480.0,0.00018894,2]
[365056825,1749430247608,-480.0,0.00018894,2]
[365056826,1749430247618,-480.0,0.00018894,2]
[365056827,1749430247627,-480.0,0.00018894,2]
[365056828,1749430247636,-480.0,0.00018894,2]
[365056829,1749430247645,-480.0,0.00018894,2]
[365056830,1749430247654,-480.0,0.00018894,2]
[365056831,1749430247663,-1328.56272811,0.000189,2]
[365056832,1749430247673,-500.0,0.00018904,2]
[365056833,1749430247683,-836.72411275,0.00018917,2]
[365056834,1749430247692,-500.0,0.00018932,2]
[365056835,1749430247703,-480.0,0.00018933,2]
[365056836,1749430247713,-480.0,0.00018933,2]
[365056837,1749430247723,-547.03,0.00018933,2]
[365056838,1749430247734,-542.67,0.00018933,2]
[365056839,1749430247746,-480.0,0.00018933,2]
[365056840,1749430247756,-480.0,0.00018933,2]
[365056841,1749430247765,-548.97,0.00018933,2]
[365056842,1749430247774,-480.0,0.00018934,2]
[365056843,1749430247783,-480.0,0.00018934,2]
[365056844,1749430247792,-480.0,0.00018934,2]
[365056845,1749430247801,-480.0,0.00018934,2]
[365056846,1749430247810,-480.0,0.00018934,2]
[365056847,1749430247819,-480.0,0.00018934,2]
[365056848,1749430247828,-480.0,0.00018934,2]
[365056849,1749430247838,-480.0,0.00018934,2]
[365056850,1749430247847,-310.65235226,0.00018934,2]
[365056851,1749430247856,-524.50129039,0.00018934,2]
[365056852,1749430247865,-506.17,0.00018934,2]
[365056853,1749430247874,-480.0,0.00018934,2]
[365056854,1749430247883,-480.0,0.00018934,2]
[365056855,1749430247892,-480.0,0.00018934,2]
[365056856,1749430247901,-480.0,0.00018934,2]
[365056857,1749430247910,-480.0,0.00018934,2]
[365056858,1749430247919,-480.0,0.00018934,2]
[365056859,1749430247928,-480.0,0.00018934,2]
[365056860,1749430247938,-250.0,0.00018934,2]
[365056861,1749430247948,-480.0,0.00018934,2]
[365056862,1749430247959,-480.0,0.00018934,2]
[365056863,1749430247969,-556.02,0.00018934,2]
[365056864,1749430247978,-480.0,0.00018934,2]
[365056865,1749430247987,-493.16,0.00018934,2]
[365056866,1749430247998,-480.0,0.00018934,2]
[365056867,1749430248007,-480.0,0.00018934,2]
[365056868,1749430248016,-344.81,0.00018934,2]
[365056869,1749430248026,-480.0,0.00018934,2]
[365056870,1749430248035,-480.0,0.00018934,2]
[365056871,1749430248044,-480.0,0.00018934,2]
[365056872,1749430248054,-480.0,0.00018934,2]
[365056873,1749430248064,-480.0,0.00018934,2]
[365056874,1749430248073,-367.97802123,0.00018934,2]
[365056875,1749430248082,-480.0,0.00018934,2]
[365056876,1749430248092,-480.0,0.00018934,2]
[365056877,1749430248101,-480.0,0.00018934,2]
[365056878,1749430248113,-480.0,0.00018934,2]
[365056879,1749430248123,-369.2644103,0.00018934,2]
[365056880,1749430248132,-480.0,0.00018934,2]
[365056881,1749430248141,-480.0,0.00018934,2]
[365056882,1749430248151,-480.0,0.00018934,2]
[365056883,1749430248319,-370.76648699,0.00018934,2]
[365056884,1749430248329,-480.0,0.00018934,2]
[365056885,1749430248339,-480.0,0.00018934,2]
[365056886,1749430248349,-374.91474435,0.00018934,2]
[365056887,1749430248358,-480.0,0.00018934,2]
[365056888,1749430248368,-480.0,0.00018934,2]
[365056889,1749430248377,-480.0,0.00018934,2]
[365056890,1749430248387,-480.0,0.00018934,2]
[365056891,1749430248397,-653.36,0.00018934,2]
[365056892,1749430248406,-480.0,0.00018934,2]
[365056893,1749430248415,-480.0,0.00018934,2]
[365056894,1749430248425,-480.0,0.00018934,2]
[365056895,1749430248435,-480.0,0.00018934,2]
[365056896,1749430248445,-489.46,0.00018934,2]
[365056897,1749430248454,-480.0,0.00018934,2]
[365056898,1749430248464,-480.0,0.00018934,2]
[365056899,1749430248474,-480.0,0.00018934,2]
[365056900,1749430248484,-480.0,0.00018934,2]
[365056901,1749430248494,-480.0,0.00018934,2]
[365056902,1749430248504,-480.0,0.00018934,2]
[365056903,1749430248513,-480.0,0.00018934,2]
[365056904,1749430248523,-480.0,0.00018934,2]
[365056905,1749430248533,-480.0,0.00018934,2]
[365056906,1749430248543,-480.0,0.00018934,2]
[365056907,1749430248552,-408.65768578,0.00018934,2]
[365056908,1749430248562,-360.0,0.00018934,2]
[365056909,1749430248571,-480.0,0.00018934,2]
[365056910,1749430248580,-480.0,0.00018934,2]
[365056911,1749430248589,-480.0,0.00018934,2]
[365056912,1749430248599,-480.0,0.00018934,2]
[365056913,1749430248608,-480.0,0.00018934,2]
[365056914,1749430248617,-480.0,0.00018934,2]
[365056915,1749430248627,-480.0,0.00018934,2]
[365056916,1749430248636,-480.0,0.00018934,2]
[365056917,1749430248646,-480.0,0.00018934,2]
[365056918,1749430248656,-480.0,0.00018934,2]
[365056919,1749430248666,-480.0,0.00018934,2]
[365056920,1749430248675,-480.0,0.00018934,2]
[365056921,1749430248684,-480.0,0.00018934,2]
[365056922,1749430248693,-480.0,0.00018934,2]
[365056923,1749430248704,-480.0,0.00018934,2]
[365056924,1749430248713,-480.0,0.00018934,2]
[365056925,1749430248723,-480.0,0.00018934,2]
[365056926,1749430248731,-461.1210258,0.00018934,2]
[365056927,1749430248741,-480.0,0.00018934,2]
[365056928,1749430248750,-123.96615975,0.00018934,2]
[365056929,1749430278899,200.0,0.00016164,2]
[365056930,1749430301238,205.0,0.00016326,2]
[365056935,1749430796253,183.0,0.00017,2]
[365056936,1749431127363,526.51,0.00015498,2]
[365056937,1749431291570,204.0,0.00016685,2]
[365056938,1749431365762,213.92,0.00013699,2]
[365056949,1749431432166,-378.9,0.00017493,2]
[365056950,1749431432285,-92.34,0.00017493,2]
[365056951,1749431432296,-336.71617024,0.0001754,2]
[365056952,1749431432309,-125.15382976,0.0001754,2]
[365056953,1749431432319,-250.0,0.00017583,2]
[365056954,1749431432331,-526.51,0.00017762,2]
[365056955,1749431432341,-200.0,0.00017773,2]
[365056956,1749431432350,-214.32,0.00017933,2]
[365056958,1749431432359,-1000.0,0.00017946,2]
[365056960,1749431432369,-1200.0,0.00017998,2]
[365056962,1749431432378,-300.0,0.00017999,2]
[365056964,1749431432388,-300.0,0.00017999,2]
[365056966,1749431432398,-459.73,0.00018,2]
[365056967,1749431432408,-2032.45241914,0.00018,2]
[365056969,1749431432418,-1926.1537511,0.00018,2]
[365057018,1749431438012,-5073.8462489,0.00018,2]
[365057019,1749431438022,-1719.3,0.00018059,2]
[365057020,1749431438032,-3350.3532,0.00018754,2]
[365057021,1749431438041,-227.42858045,0.00018754,2]
[365057022,1749431438129,-1476.61709751,0.00018754,2]
[365057143,1749431440118,-1230.4906197,0.00018754,2]
[365057144,1749431440130,-1478.30652022,0.00018754,2]
[365057145,1749431440139,-563.06,0.00018768,2]
[365057146,1749431440149,-720.14,0.00018768,2]
[365057147,1749431440158,-431.90106905,0.00018768,2]
[365057148,1749431440167,-480.0,0.00018768,2]
[365057149,1749431440176,-480.0,0.00018768,2]
[365057150,1749431440185,-446.12121076,0.00018768,2]
[365057151,1749431440197,-33.87878924,0.00018768,2]
[365057152,1749431440206,-480.0,0.00018768,2]
[365057153,1749431440215,-480.0,0.00018768,2]
[365057154,1749431440224,-64.32121076,0.00018768,2]
[365057155,1749431440344,-415.67878924,0.00018768,2]
[365057156,1749431440355,-480.0,0.00018768,2]
[365057157,1749431440364,-480.0,0.00018768,2]
[365057158,1749431440374,-480.0,0.00018768,2]
[365057159,1749431440383,-480.0,0.00018768,2]
[365057160,1749431440391,-480.0,0.00018768,2]
[365057161,1749431440400,-480.0,0.00018768,2]
[365057162,1749431440410,-480.0,0.00018768,2]
[365057163,1749431440419,-480.0,0.00018768,2]
[365057164,1749431440428,-480.0,0.00018768,2]
[365057165,1749431440438,-480.0,0.00018768,2]
[365057166,1749431440447,-621.7,0.00018768,2]
[365057167,1749431440456,-783.68,0.00018768,2]
[365057168,1749431440466,-480.0,0.00018768,2]
[365057169,1749431440475,-480.0,0.00018768,2]
[365057170,1749431440483,-480.0,0.00018768,2]
[365057171,1749431440492,-864.13,0.00018768,2]
[365057172,1749431440501,-1165.47,0.00018768,2]
[365057173,1749431440510,-180.84,0.00018768,2]
[365057174,1749431440520,-615.04,0.00018768,2]
[365057175,1749431440529,-917.58,0.00018768,2]
[365057176,1749431440539,-480.0,0.00018768,2]
[365057178,1749431440548,-480.0,0.00018768,2]
[365057180,1749431440557,-543.65,0.00018768,2]
[365057181,1749431440567,-480.0,0.00018768,2]
[365057182,1749431440576,-420.0,0.00018768,2]
[365057183,1749431440585,-348.11,0.00018768,2]
[365057184,1749431440595,-914.32,0.00018768,2]
[365057185,1749431440605,-480.0,0.00018768,2]
[365057186,1749431440615,-480.0,0.00018768,2]
[365057187,1749431440625,-480.0,0.00018768,2]
[365057188,1749431440634,-453.18533302,0.00018768,2]
[365057190,1749431440646,-50.43466698,0.00018768,2]
[365057192,1749431440656,-523.66,0.00018768,2]
[365057193,1749431440665,-460.85620028,0.00018768,2]
[365057195,1749431440675,-480.0,0.00018768,2]
[365057197,1749431440684,-380.07607619,0.00018768,2]
[365057199,1749431440695,-150.31392381,0.00018768,2]
[365057200,1749431440705,-464.99519901,0.00018768,2]
[365057202,1749431440719,-380.0,0.00018768,2]
[365057204,1749431440728,-480.0,0.00018768,2]
[365057206,1749431440737,-547.22,0.00018768,2]
[365057208,1749431440746,-460.0,0.00018768,2]
[365057209,1749431440755,-480.0,0.00018768,2]
[365057211,1749431440764,-480.0,0.00018768,2]
[365057213,1749431440773,-612.26,0.00018768,2]
[365057215,1749431440782,-480.0,0.00018768,2]
[365057217,1749431440792,-480.0,0.00018768,2]
[365057219,1749431440801,-460.0,0.00018768,2]
[365057220,1749431440811,-480.0,0.00018768,2]
[365057222,1749431440821,-480.0,0.00018768,2]
[365057224,1749431440830,-380.0,0.00018768,2]
[365057226,1749431440839,-480.0,0.00018768,2]
[365057228,1749431440849,-480.0,0.00018768,2]
[365057230,1749431440858,-480.0,0.00018768,2]
[365057231,1749431440867,-480.0,0.00018768,2]
[365057232,1749431440878,-480.0,0.00018768,2]
[365057233,1749431440887,-460.0,0.00018768,2]
[365057234,1749431440897,-480.0,0.00018768,2]
[365057235,1749431440906,-480.0,0.00018768,2]
[365057236,1749431440915,-469.61087721,0.00018768,2]
[365057237,1749431440927,-10.38912279,0.00018768,2]
[365057238,1749431440937,-460.0,0.00018768,2]
[365057239,1749431440949,-380.0,0.00018768,2]
[365057240,1749431440959,-480.0,0.00018768,2]
[365057241,1749431440968,-788.5,0.00018768,2]
[365057242,1749431440978,-480.0,0.00018768,2]
[365057243,1749431440987,-480.0,0.00018768,2]
[365057244,1749431440996,-480.0,0.00018768,2]
[365057245,1749431441005,-480.0,0.00018768,2]